fUSD/lending_fUSD_20250118
["ID","MTS","AMOUNT","RATE_DAILY","PERIOD"]
[349473062,1737199757169,-153.4396486,0.00017364,2]
[349473063,1737199760129,-46.5603514,0.00017364,2]
[349473064,1737199760149,-1035.50667841,0.00017365,2]
[349473065,1737199760171,-1013.4,0.00017395,2]
[349473066,1737199760191,-1500.0,0.00017419,2]
[349473067,1737199760211,-831.03,0.00017422,2]
[349473068,1737199760232,-22684.16257991,0.00017557,2]
[349473069,1737199760254,-155.52,0.00017599,2]
[349473070,1737199760276,-402.6,0.00017643,2]
[349473071,1737199760301,-974.71,0.00017668,2]
[349473072,1737199760322,-200.0,0.00017768,2]
[349473073,1737199760342,-883.05,0.00017854,2]
[349473074,1737199760364,-1000.0,0.00017863,2]
[349473075,1737199760385,-1807.81,0.00017863,2]
[349473076,1737199760405,-250.0,0.00017867,2]
[349473077,1737199760426,-250.0,0.00017901,2]
[349473078,1737199760446,-1885.84,0.00017911,2]
[349473079,1737199760466,-150.0,0.00018,3]
[349473080,1737199760487,-250.0,0.00018017,2]
[349473081,1737199760511,-155.42,0.00018065,2]
[349473082,1737199760535,-2852.01,0.00018073,2]
[349473083,1737199760562,-176.6,0.00018082,2]
[349473084,1737199766003,150.0,0.00017988,2]
[349473098,1737199832631,-1013.4,0.00018265,2]
[349473099,1737199832641,-4459.23,0.0001833,2]
[349473100,1737199832650,-300.0,0.00018532,2]
[349473101,1737199832659,-499.99,0.00018533,2]
[349473102,1737199832669,-9999.99,0.00018533,2]
[349473103,1737199832678,-150.99,0.00018533,2]
[349473104,1737199832688,-999.99,0.00018533,2]
[349473105,1737199832701,-2056.5,0.00018533,2]
[349473106,1737199832710,-4222.48,0.00018533,2]
[349473107,1737199832719,-6199.32,0.00018533,2]
[349473108,1737199832728,-8095.31142704,0.00018533,2]
[349473109,1737199832740,-345.62857128,0.00018533,2]
[349473128,1737199838139,-1559.05000168,0.00018533,2]
[349473129,1737199838149,-150.99,0.00018533,2]
[349473130,1737199838158,-168.61,0.00018625,2]
[349473131,1737199838168,-1000.0,0.0001869,2]
[349473132,1737199838178,-5213.7101,0.0001869,2]
[349473133,1737199838188,-8174.13989837,0.00018691,2]
[349473134,1737199838304,-7599.80200163,0.00018691,2]
[349473135,1737199838314,-167.14802507,0.00018692,2]
[349473136,1737199838324,-5000.0,0.000187,2]
[349473137,1737199838334,-150.37,0.00018749,2]
[349473138,1737199838346,-5800.0,0.00018774,2]
[349473139,1737199838356,-6.99726861,0.00018783,2]
[349473140,1737199838370,-5793.00273139,0.00018783,2]
[349473141,1737199838379,-25588.0005,0.0001879,2]
[349473142,1737199838388,-118.03847493,0.0001879,2]
[349473143,1737199838433,-433.56161828,0.0001879,2]
[349473144,1737199838444,-812.88075004,0.0001879,2]
[349473238,1737199840377,-979.69499999,0.0001879,2]
[349473239,1737199840582,-947.72946,0.0001879,2]
[349473240,1737199840733,-348.82372796,0.0001879,2]
[349473241,1737199840746,-12679.06811425,0.0001879,2]
[349473242,1737199840757,-4141.00257571,0.0001879,2]
[349473265,1737199843500,-43159.0404832,0.0001879,2]
[349473277,1737199846171,-945.8645685,0.0001879,2]
[349473278,1737199846351,-8157.0,0.0001879,2]
[349473279,1737199846362,-10313.2797533,0.0001879,2]
[349473280,1737199846389,-783.65000552,0.0001879,2]
[349473281,1737199846425,-656.84287067,0.0001879,2]
[349473282,1737199846436,-647.26329765,0.0001879,2]
[349473283,1737199846446,-1000.0,0.0001879,2]
[349473284,1737199846455,-233.70777235,0.0001879,2]
[349473285,1737199846467,-1016.60000025,0.0001879,2]
[349473291,1737199846810,-15113.50249286,0.0001879,2]
[349473292,1737199846822,-412.5856511,0.0001879,2]
[349473293,1737199994336,2000.0,0.00022999,120]
[349473299,1737200584078,151.64,0.00010137,2]
[349473301,1737200593093,2000.0,0.00023,120]
[349473302,1737200758141,-794.74,0.00016109,2]
[349473303,1737200758165,-250.0,0.00017568,2]
[349473304,1737200758187,-150.0,0.0001759,2]
[349473305,1737200758208,-250.0,0.00017599,2]
[349473306,1737200758230,-718.64026037,0.00017636,2]
[349473307,1737200801312,1000.0,0.00023,120]
[349473308,1737200826103,-300.0,0.00017635,2]
[349473309,1737200826127,-833.45814408,0.00017636,2]
[349473310,1737200832083,-459.85876554,0.00017636,2]
[349473312,1737200843146,-836.69389203,0.00017636,2]
[349473313,1737200844147,-392.25584333,0.00017636,2]
[349473314,1737200845096,-1657.9163014,0.00017636,2]
[349473315,1737200946100,-200.0,0.0001759,2]
[349473316,1737200946122,-19001.17679325,0.00017636,2]
[349473317,1737200946150,-200.0,0.00017669,2]
[349473318,1737200946171,-1420.41,0.00017679,2]
[349473319,1737200946193,-535.79439305,0.00017713,2]
[349473320,1737200946213,-608.04,0.00017714,2]
[349473321,1737200946234,-168.61,0.00017828,2]
[349473322,1737200946254,-627.28,0.00017978,2]
[349473323,1737200946276,-250.0,0.00018003,2]
[349473324,1737200946296,-176.6,0.00018082,2]
[349473325,1737200946319,-964.06,0.00018126,2]
[349473326,1737200946340,-487.35,0.00018171,2]
[349473327,1737200946362,-301.04,0.00018195,2]
[349473328,1737200946385,-1000.0,0.00018234,2]
[349473329,1737200946405,-500.0,0.00018268,2]
[349473330,1737200946426,-1000.0,0.00018268,2]
[349473331,1737200946447,-500.0,0.00018268,2]
[349473332,1737200946469,-794.74,0.00018373,2]
[349473333,1737200946491,-10040.0,0.00018432,2]
[349473334,1737200946518,-14475.0,0.00018435,2]
[349473335,1737200946538,-150.0,0.000185,3]
[349473336,1737200946559,-499.99,0.00018533,2]
[349473337,1737200946579,-9999.99,0.00018533,2]
[349473338,1737200946600,-150.99,0.00018533,2]
[349473339,1737200946621,-608.04,0.00018599,2]
[349473340,1737200946644,-174.16,0.00018644,2]
[349473341,1737200946665,-1000.0,0.0001869,2]
[349473342,1737200946687,-3000.0,0.0001879,2]
[349473343,1737200946707,-25136.12084991,0.0001879,2]
[349473389,1737201032841,-500.0,0.00018268,2]
[349473390,1737201032851,-3000.0,0.0001879,2]
[349473391,1737201032860,-32182.28554877,0.0001879,2]
[349473392,1737201032869,-5800.0,0.00018791,2]
[349473393,1737201032878,-5800.0,0.000188,2]
[349473394,1737201032887,-9279.2825,0.000189,2]
[349473397,1737201032897,-1069.5679,0.000189,2]
[349473399,1737201032906,-25550.91581392,0.000189,2]
[349473402,1737201032915,-36134.184,0.000189,2]
[349473405,1737201032924,-346.26662415,0.000189,2]
[349473408,1737201032933,-1666.9414927,0.000189,2]
[349473410,1737201032942,-157.267,0.0001891,2]
[349473413,1737201032953,-376.57400709,0.00018973,2]
[349473416,1737201032963,-4936.71509547,0.00019,2]
[349473594,1737201034612,976.9470939,0.0001759,2]
[349473711,1737201038371,-223.71856819,0.0001759,2]
[349473712,1737201038381,-80.29624482,0.00019,2]
[349473713,1737201038786,-29.02849068,0.00019,2]
[349473714,1737201038806,-35245.69730675,0.00019,2]
[349473715,1737201038816,-16576.72495964,0.00019,2]
[349473885,1737201040567,-1590.9044328,0.00019,2]
[349473887,1737201040578,-1804.29,0.00019,2]
[349473900,1737201040688,-341.129175,0.00019,2]
[349474019,1737201046369,-477.09458761,0.00018268,2]
[349474020,1737201046381,-22.90541239,0.00018268,2]
[349474021,1737201046391,-975.23534761,0.00019,2]
[349474022,1737201046402,-24465.64608495,0.00019,2]
[349474023,1737201046412,-346.26662411,0.0001905,2]
[349474024,1737201046421,-202.0,0.0001913,2]
[349474025,1737201046432,-410.0,0.00019151,2]
[349474026,1737201046442,-163.046,0.00019159,2]
[349474027,1737201046452,-215.54129094,0.00019159,2]
[349474028,1737201046464,-1664.06770906,0.00019159,2]
[349474029,1737201046474,-500.0,0.00019177,2]
[349474030,1737201046483,-2100.26573535,0.00019178,2]
[349474031,1737201046718,-63079.87392938,0.00019178,2]
[349474032,1737201046729,-6548.99999999,0.00019178,2]
[349474033,1737201046757,-1000.0,0.00018268,2]
[349474034,1737201046767,-3162.88090443,0.00019178,2]
[349474035,1737201046779,-5001.2656,0.00019178,2]
[349474036,1737201046791,-632.800012,0.00019178,2]
[349474038,1737201159894,150.0,0.000149,2]
[349474039,1737201192233,1664.37763,0.00023,120]
[349474040,1737201233701,-19000.0,0.00016641,7]
[349474041,1737201441632,245.33233123,0.0002,30]
[349474042,1737201510745,154.14,0.00010137,2]
[349474044,1737202034143,-757.86,0.00016245,2]
[349474045,1737202034164,-300.0,0.0001664,2]
[349474046,1737202034187,-300.0,0.0001664,2]
[349474047,1737202034208,-96.6366944,0.00016641,2]
[349474048,1737202041959,-356.86070043,0.00016641,2]
[349474049,1737202041981,-497.27029149,0.00016641,2]
[349474050,1737202053110,-1171.848618,0.00016641,7]
[349474051,1737202053135,-487.59477491,0.00016641,7]
[349474052,1737202054099,-1726.34979929,0.00016641,7]
[349474054,1737202145104,-48725.45896049,0.00016641,7]
[349474055,1737202147236,-31499.00712,0.00016641,7]
[349474056,1737202150151,-999.07212021,0.00016641,7]
[349474057,1737202150172,-4204.82087347,0.00016641,7]
[349474058,1737202152103,-44318.75658,0.00016641,7]
[349474061,1737202160077,-46630.15714,0.00016641,7]
[349474062,1737202166242,-15697.51368053,0.00016641,7]
[349474063,1737202166263,-250.0,0.00017575,2]
[349474064,1737202166284,-1848.94996985,0.00017585,2]
[349474065,1737202166308,-23900.0,0.00017586,2]
[349474066,1737202166329,-154.14,0.00017599,2]
[349474067,1737202166357,-240.83,0.00017625,2]
[349474068,1737202166377,-180.8,0.00017663,2]
[349474069,1737202166399,-45338.64,0.00017783,2]
[349474070,1737202166422,-150.0,0.00017837,2]
[349474071,1737202166443,-6392.97506948,0.00017878,2]
[349474072,1737202171116,-487.75073388,0.00017475,2]
[349474073,1737202171136,-1921.75493052,0.00017878,2]
[349474074,1737202171156,-250.0,0.00017896,2]
[349474075,1737202171179,-382.93056737,0.000179,2]
[349474076,1737202171198,-4459.23,0.00017926,2]
[349474077,1737202171219,-364.82,0.00017959,2]
[349474078,1737202171238,-200.0,0.00018003,2]
[349474091,1737202231420,-1500.0,0.00018175,2]
[349474092,1737202231430,-49174.0,0.00018238,2]
[349474093,1737202231443,-500.0,0.00018268,2]
[349474094,1737202231455,-1100.0,0.00018268,2]
[349474095,1737202231464,-940.66,0.00018283,2]
[349474096,1737202231474,-250.0,0.00018356,2]
[349474097,1737202231483,-453.97,0.00018386,2]
[349474098,1737202231493,-757.86,0.00018509,2]
[349474099,1737202231503,-322.08,0.00018665,2]
[349474100,1737202231517,-1000.0,0.00018735,2]
[349474101,1737202231527,-312.73217422,0.00018749,7]
[349474102,1737202231536,-120024.74121622,0.0001875,7]
[349474103,1737202231548,-100966.47393931,0.0001875,7]
[349474104,1737202231559,-6447.17791334,0.00018756,7]
[349474105,1737202231568,-6447.17791334,0.00018762,7]
[349474106,1737202231578,-19294.09704653,0.00018764,7]
[349474107,1737202231600,-480.18696714,0.00018764,7]
[349474108,1737202231632,-6864.6624585,0.00018764,7]
[349474169,1737202237450,-872.38999999,0.00018764,7]
[349474170,1737202237610,-1997.5892477,0.00018764,7]
[349474171,1737202237664,-22323.91042253,0.00018764,7]
[349474172,1737202237676,-11892.72271579,0.00018764,7]
[349474173,1737202237718,-506.29937867,0.00018764,7]
[349474281,1737202239603,-2072.05,0.00018764,7]
[349474282,1737202239614,-612.46185024,0.00018764,7]
[349474283,1737202240096,-1285.13858228,0.00018764,7]
[349474284,1737202240106,-220991.21515553,0.00018766,7]
[349474285,1737202240116,-6447.17791334,0.0001877,7]
[349474286,1737202240125,-312.73217422,0.00018771,7]
[349474287,1737202240134,-312.73217422,0.00018771,7]
[349474289,1737202240143,-2045.88232186,0.00018773,7]
[349474291,1737202240152,-13218.77144815,0.00018776,7]
[349474293,1737202240161,-2045.88232186,0.00018781,7]
[349474295,1737202240171,-68201.50866937,0.00018784,7]
[349474297,1737202240180,-312.73217422,0.00018784,7]
[349474299,1737202240189,-312.73217422,0.00018785,7]
[349474301,1737202240198,-68201.50866937,0.00018788,7]
[349474302,1737202240207,-312.73217422,0.0001879,7]
[349474303,1737202240216,-68201.50866937,0.0001879,7]
[349474304,1737202240225,-220991.21515553,0.00018795,7]
[349474305,1737202240234,-13218.77144815,0.00018797,7]
[349474306,1737202240242,-312.73217422,0.000188,7]
[349474307,1737202240252,-2045.88232186,0.00018805,7]
[349474308,1737202240261,-68201.50866937,0.00018806,7]
[349474309,1737202240270,-6447.17791334,0.00018807,7]
[349474310,1737202240279,-220991.21515553,0.00018809,7]
[349474311,1737202240288,-13218.77144815,0.0001881,7]
[349474312,1737202240297,-220991.21515553,0.00018818,7]
[349474313,1737202240307,-2045.88232186,0.00018818,7]
[349474314,1737202240316,-13218.77144815,0.00018831,7]
[349474315,1737202240326,-6447.17791334,0.00018835,7]
[349474316,1737202240335,-68201.50866937,0.00018842,7]
[349474317,1737202240344,-6447.17791334,0.00018842,7]
[349474318,1737202240353,-68201.50866937,0.00018848,7]
[349474319,1737202240363,-220991.21515553,0.00018853,7]
[349474320,1737202240372,-2045.88232186,0.00018855,7]
[349474321,1737202240381,-364.82,0.00018857,2]
[349474322,1737202240391,-13218.77144815,0.0001886,7]
[349474323,1737202240400,-13218.77144815,0.00018864,7]
[349474324,1737202240409,-6447.17791334,0.00018866,7]
[349474325,1737202240418,-6447.17791334,0.00018868,7]
[349474326,1737202240427,-13218.77144815,0.00018875,7]
[349474327,1737202240439,-2045.88232186,0.00018875,7]
[349474328,1737202240449,-2045.88232186,0.00018877,7]
[349474329,1737202240460,-220991.21515553,0.00018877,7]
[349474330,1737202240469,-13218.77144815,0.0001888,7]
[349474331,1737202240480,-68201.50866937,0.00018881,7]
[349474332,1737202240489,-312.73217422,0.00018894,7]
[349474333,1737202240498,-2045.88232186,0.00018894,7]
[349474334,1737202240520,-1000.0,0.000189,2]
[349474335,1737202240531,-220991.21515553,0.000189,7]
[349474336,1737202240540,-156.996,0.0001891,2]
[349474337,1737202240550,-4159.8213716,0.00018978,2]
[349474338,1737202240561,-3000.0,0.0001899,2]
[349474339,1737202240571,-7545.26345224,0.00019,3]
[349474340,1737202240580,-374.96462714,0.00019,2]
[349474341,1737202240590,-18651.3748,0.00019078,2]
[349474342,1737202240600,-247.33330297,0.00019078,2]
[349474343,1737202240610,-161.35884374,0.00019078,2]
[349474344,1737202240619,-163.047,0.00019167,2]
[349474345,1737202240629,-1503.687,0.00019167,2]
[349474346,1737202240638,-383170.76158602,0.00019173,2]
[349474347,1737202240647,-500.0,0.00019177,2]
[349474348,1737202240656,-1627922.9960297,0.00019178,2]
[349474349,1737202240666,-160.86977825,0.00019178,2]
[349474350,1737202240675,-500.0,0.00019178,2]
[349474351,1737202240685,-500.0,0.00019178,2]
[349474352,1737202240694,-500.0,0.00019178,2]
[349474353,1737202240704,-500.0,0.00019178,2]
[349474354,1737202240713,-504.95520962,0.00019178,2]
[349474355,1737202240722,-500.0,0.00019178,2]
[349474356,1737202240732,-501.29863588,0.00019178,2]
[349474357,1737202240742,-157.34814143,0.00019178,2]
[349474358,1737202240752,-501.0505928,0.00019178,2]
[349474359,1737202240761,-504.71788683,0.00019178,2]
[349474360,1737202240771,-507.04536644,0.00019178,2]
[349474361,1737202240781,-500.0,0.00019178,2]
[349474362,1737202240790,-508.85299448,0.00019178,2]
[349474363,1737202240800,-500.0,0.00019178,2]
[349474364,1737202240809,-500.0,0.00019178,2]
[349474365,1737202240818,-500.0,0.00019178,2]
[349474366,1737202240829,-505.30398443,0.00019178,2]
[349474367,1737202240838,-500.0,0.00019178,2]
[349474368,1737202240847,-509.89847375,0.00019178,2]
[349474369,1737202240859,-501.95370771,0.00019178,2]
[349474370,1737202240868,-500.0,0.00019178,2]
[349474371,1737202240877,-500.0,0.00019178,2]
[349474372,1737202240886,-500.0,0.00019178,2]
[349474373,1737202240896,-500.0,0.00019178,2]
[349474374,1737202240906,-500.0,0.00019178,2]
[349474375,1737202240916,-525.89286316,0.00019178,2]
[349474376,1737202240925,-500.0,0.00019178,2]
[349474377,1737202240935,-513.188417,0.00019178,2]
[349474378,1737202240944,-500.0,0.00019178,2]
[349474379,1737202240954,-506.02002764,0.00019178,2]
[349474380,1737202240963,-500.0,0.00019178,2]
[349474381,1737202240973,-500.0,0.00019178,2]
[349474382,1737202240982,-500.0,0.00019178,2]
[349474383,1737202240991,-500.0,0.00019178,2]
[349474384,1737202241000,-527.11495016,0.00019178,2]
[349474385,1737202241010,-500.0,0.00019178,2]
[349474386,1737202241019,-502.0012027,0.00019178,2]
[349474387,1737202241028,-501.23343664,0.00019178,2]
[349474388,1737202241037,-500.0,0.00019178,2]
[349474389,1737202241046,-515.97174092,0.00019178,2]
[349474390,1737202241055,-500.0,0.00019178,2]
[349474391,1737202241065,-500.0,0.00019178,2]
[349474392,1737202241074,-500.0,0.00019178,2]
[349474393,1737202241084,-500.0,0.00019178,2]
[349474394,1737202241093,-500.0,0.00019178,2]
[349474395,1737202241104,-500.0,0.00019178,7]
[349474396,1737202241113,-500.0,0.00019178,2]
[349474397,1737202241122,-500.0,0.00019178,7]
[349474398,1737202241132,-500.0,0.00019178,2]
[349474399,1737202241142,-500.0,0.00019178,7]
[349474400,1737202241151,-500.0,0.00019178,2]
[349474401,1737202241160,-500.0,0.00019178,7]
[349474402,1737202241169,-500.0,0.00019178,2]
[349474403,1737202241179,-500.0,0.00019178,7]
[349474404,1737202241188,-500.0,0.00019178,2]
[349474405,1737202241197,-502.57294995,0.00019178,7]
[349474406,1737202241207,-449.13646041,0.00019178,2]
[349474407,1737202241216,-503.17438857,0.00019178,2]
[349474408,1737202241225,-503.26572874,0.00019178,2]
[349474409,1737202241236,-500.0,0.00019178,2]
[349474410,1737202241245,-500.0,0.00019178,2]
[349474411,1737202241254,-500.0,0.00019178,2]
[349474412,1737202241264,-500.0,0.00019178,2]
[349474413,1737202241274,-271.23105977,0.00019178,2]
[349474414,1737202241283,-515.04958124,0.00019178,2]
[349474415,1737202241292,-500.0,0.00019178,2]
[349474416,1737202241302,-500.0,0.00019178,2]
[349474417,1737202241311,-280.7658057,0.00019178,2]
[349474418,1737202241320,-500.0,0.00019178,2]
[349474419,1737202241331,-500.0,0.00019178,2]
[349474420,1737202241342,-519.90392439,0.00019178,2]
[349474421,1737202241356,-506.64335937,0.00019178,2]
[349474422,1737202241366,-504.4488763,0.00019178,2]
[349474423,1737202241376,-500.0,0.00019178,2]
[349474424,1737202241386,-500.0,0.00019178,2]
[349474425,1737202241631,-500.0,0.00019178,2]
[349474426,1737202241641,-503.25184124,0.00019178,2]
[349474427,1737202241650,-500.0,0.00019178,2]
[349474428,1737202241660,-500.0,0.00019178,2]
[349474429,1737202241670,-500.0,0.00019178,2]
[349474430,1737202241680,-500.0,0.00019178,2]
[349474431,1737202241690,-519.99634144,0.00019178,2]
[349474432,1737202241699,-500.0,0.00019178,2]
[349474433,1737202241709,-500.0,0.00019178,2]
[349474434,1737202241718,-500.0,0.00019178,2]
[349474435,1737202241728,-500.0,0.00019178,2]
[349474436,1737202241737,-510.94447008,0.00019178,2]
[349474437,1737202241747,-500.0,0.00019178,2]
[349474438,1737202241755,-500.0,0.00019178,2]
[349474439,1737202241765,-500.0,0.00019178,2]
[349474440,1737202241775,-502.50615711,0.00019178,2]
[349474441,1737202241784,-500.0,0.00019178,2]
[349474442,1737202241793,-500.0,0.00019178,2]
[349474443,1737202241803,-500.0,0.00019178,2]
[349474444,1737202241812,-500.0,0.00019178,2]
[349474445,1737202241821,-500.0,0.00019178,2]
[349474446,1737202241831,-500.0,0.00019178,2]
[349474447,1737202241840,-500.0,0.00019178,2]
[349474448,1737202241850,-500.0,0.00019178,2]
[349474449,1737202241860,-500.0,0.00019178,2]
[349474450,1737202241870,-500.0,0.00019178,2]
[349474451,1737202241879,-354.01753412,0.00019178,2]
[349474452,1737202241888,-500.0,0.00019178,2]
[349474453,1737202241898,-514.78846079,0.00019178,2]
[349474454,1737202241907,-503.5151053,0.00019178,2]
[349474455,1737202241916,-500.0,0.00019178,2]
[349474456,1737202241926,-500.0,0.00019178,2]
[349474457,1737202241935,-500.0,0.00019178,2]
[349474458,1737202241944,-500.0,0.00019178,2]
[349474459,1737202241957,-500.0,0.00019178,2]
[349474460,1737202241966,-500.0,0.00019178,2]
[349474461,1737202241976,-500.0,0.00019178,2]
[349474462,1737202241985,-500.0,0.00019178,2]
[349474463,1737202241994,-500.0,0.00019178,2]
[349474464,1737202242004,-500.0,0.00019178,2]
[349474465,1737202242014,-500.0,0.00019178,2]
[349474466,1737202242023,-500.0,0.00019178,2]
[349474467,1737202242033,-511.21609993,0.00019178,2]
[349474468,1737202242043,-500.0,0.00019178,2]
[349474469,1737202242053,-500.0,0.00019178,2]
[349474470,1737202242062,-500.0,0.00019178,2]
[349474471,1737202242072,-502.26365941,0.00019178,2]
[349474472,1737202242082,-516.98611512,0.00019178,2]
[349474473,1737202242093,-500.0,0.00019178,2]
[349474474,1737202242103,-500.0,0.00019178,2]
[349474475,1737202242113,-500.0,0.00019178,2]
[349474476,1737202242123,-500.0,0.00019178,2]
[349474477,1737202242133,-500.0,0.00019178,2]
[349474478,1737202242143,-500.0,0.00019178,2]
[349474479,1737202242153,-500.0,0.00019178,2]
[349474480,1737202242163,-500.0,0.00019178,2]
[349474481,1737202242172,-500.0,0.00019178,2]
[349474482,1737202242182,-500.0,0.00019178,2]
[349474484,1737202242192,-500.0,0.00019178,2]
[349474485,1737202242202,-500.0,0.00019178,2]
[349474486,1737202242213,-245.43092016,0.00019178,2]
[349474487,1737202242223,-500.0,0.00019178,2]
[349474488,1737202242235,-500.0,0.00019178,2]
[349474489,1737202242246,-500.0,0.00019178,2]
[349474490,1737202242256,-500.0,0.00019178,2]
[349474491,1737202242267,-500.0,0.00019178,2]
[349474492,1737202242277,-500.0,0.00019178,2]
[349474493,1737202242287,-500.0,0.00019178,2]
[349474494,1737202242298,-500.0,0.00019178,2]
[349474495,1737202242309,-500.0,0.00019178,2]
[349474496,1737202242318,-503.24339228,0.00019178,2]
[349474497,1737202242328,-500.0,0.00019178,2]
[349474498,1737202242338,-500.0,0.00019178,2]
[349474499,1737202242347,-500.0,0.00019178,2]
[349474500,1737202242359,-500.0,0.00019178,2]
[349474501,1737202242368,-500.0,0.00019178,2]
[349474502,1737202242378,-500.0,0.00019178,2]
[349474503,1737202242388,-159.82,0.00019178,2]
[349474504,1737202242397,-300.0,0.00019178,2]
[349474505,1737202242407,-500.0,0.00019178,2]
[349474506,1737202242417,-500.0,0.00019178,2]
[349474507,1737202242427,-500.0,0.00019178,2]
[349474508,1737202242437,-509.19295595,0.00019178,2]
[349474509,1737202242447,-500.0,0.00019178,2]
[349474510,1737202242456,-500.0,0.00019178,2]
[349474511,1737202242466,-500.0,0.00019178,2]
[349474512,1737202242476,-500.0,0.00019178,2]
[349474513,1737202242485,-500.0,0.00019178,2]
[349474514,1737202242495,-500.0,0.00019178,2]
[349474515,1737202242505,-500.0,0.00019178,2]
[349474516,1737202242516,-500.0,0.00019178,2]
[349474517,1737202242527,-500.0,0.00019178,2]
[349474518,1737202242537,-500.0,0.00019178,2]
[349474519,1737202242546,-500.0,0.00019178,2]
[349474520,1737202242556,-319.19748441,0.00019178,2]
[349474521,1737202242566,-500.0,0.00019178,2]
[349474522,1737202242576,-500.0,0.00019178,2]
[349474523,1737202242585,-500.0,0.00019178,2]
[349474524,1737202242597,-500.0,0.00019178,2]
[349474525,1737202242608,-500.0,0.00019178,2]
[349474526,1737202242618,-508.58180898,0.00019178,2]
[349474527,1737202242627,-500.5923495,0.00019178,2]
[349474528,1737202242637,-500.0,0.00019178,2]
[349474529,1737202242647,-500.0,0.00019178,2]
[349474530,1737202242656,-503.12876563,0.00019178,2]
[349474531,1737202242666,-502.34345208,0.00019178,2]
[349474532,1737202242675,-500.0,0.00019178,2]
[349474533,1737202242684,-648.25,0.00019178,2]
[349474534,1737202242694,-500.0,0.00019178,2]
[349474535,1737202242703,-648.25,0.00019178,2]
[349474536,1737202242713,-500.0,0.00019178,2]
[349474537,1737202242722,-648.25,0.00019178,2]
[349474538,1737202242731,-648.25,0.00019178,2]
[349474539,1737202242741,-648.25,0.00019178,2]
[349474540,1737202242751,-648.25,0.00019178,2]
[349474541,1737202242760,-648.25,0.00019178,2]
[349474542,1737202242770,-500.0,0.00019178,2]
[349474543,1737202242779,-648.25,0.00019178,2]
[349474544,1737202242789,-507.04870046,0.00019178,2]
[349474545,1737202242799,-648.25,0.00019178,2]
[349474546,1737202242808,-648.25,0.00019178,2]
[349474547,1737202242817,-648.25,0.00019178,2]
[349474548,1737202242827,-500.0,0.00019178,2]
[349474549,1737202242836,-648.25,0.00019178,2]
[349474550,1737202242845,-500.0,0.00019178,2]
[349474551,1737202242854,-513.45093304,0.00019178,2]
[349474552,1737202242864,-500.0,0.00019178,2]
[349474553,1737202242873,-500.0,0.00019178,2]
[349474554,1737202242883,-500.0,0.00019178,2]
[349474555,1737202242892,-500.0,0.00019178,2]
[349474556,1737202242901,-500.0,0.00019178,2]
[349474558,1737202242911,-500.0,0.00019178,2]
[349474560,1737202242920,-500.0,0.00019178,2]
[349474562,1737202242929,-500.0,0.00019178,2]
[349474563,1737202242939,-500.0,0.00019178,2]
[349474564,1737202242949,-500.0,0.00019178,2]
[349474565,1737202242958,-500.0,0.00019178,2]
[349474566,1737202242968,-500.0,0.00019178,2]
[349474567,1737202242978,-500.0,0.00019178,2]
[349474568,1737202242988,-500.0,0.00019178,2]
[349474569,1737202242997,-500.0,0.00019178,2]
[349474570,1737202243006,-500.0,0.00019178,2]
[349474571,1737202243016,-500.0,0.00019178,2]
[349474572,1737202243026,-500.0,0.00019178,2]
[349474573,1737202243035,-506.79161612,0.00019178,2]
[349474574,1737202243045,-500.0,0.00019178,2]
[349474575,1737202243054,-558.73125844,0.00019178,2]
[349474576,1737202243064,-500.0,0.00019178,2]
[349474577,1737202243074,-500.0,0.00019178,2]